fUST/lending_fUST_20260103
["ID","MTS","AMOUNT","RATE_DAILY","PERIOD"]
[400371477,1767449443010,-2176.266,0.0001904,2]
[400371478,1767449443027,-630.228,0.0001904,2]
[400371479,1767449443044,-1365.0,0.0001904,2]
[400371480,1767449443060,-160.0,0.00019046,3]
[400371482,1767449443078,-303.13640077,0.00019089,2]
[400371483,1767449443096,-303.1212394,0.00019089,2]
[400371484,1767449443113,-881.7745,0.00019178,4]
[400371485,1767449443131,-881.7745,0.00019178,2]
[400371486,1767449443148,-881.7745,0.00019178,4]
[400371487,1767449443164,-881.7745,0.00019178,4]
[400371488,1767449443182,-881.7745,0.00019178,4]
[400371489,1767449443193,-881.7745,0.00019178,2]
[400371490,1767449443203,-881.7745,0.00019178,4]
[400371491,1767449443212,-881.7745,0.00019178,4]
[400371492,1767449443222,-881.7745,0.00019178,2]
[400371493,1767449443231,-881.7745,0.00019178,4]
[400371494,1767449443241,-881.7745,0.00019178,4]
[400371495,1767449443428,-881.7745,0.00019178,4]
[400371496,1767449443452,-761.54,0.00019178,2]
[400371497,1767449443463,-881.7745,0.00019178,4]
[400371498,1767449443473,-881.7745,0.00019178,4]
[400371499,1767449443483,-881.7745,0.00019178,4]
[400371500,1767449443492,-761.54,0.00019178,2]
[400371501,1767449443502,-881.7745,0.00019178,4]
[400371502,1767449443511,-152.0,0.00019178,3]
[400371503,1767449443520,-36463.45,0.000192,2]
[400371504,1767449443530,-2781.57,0.000192,2]
[400371505,1767449443539,-250.16,0.000192,2]
[400371506,1767449443549,-253.93,0.000192,2]
[400371507,1767449443559,-167.67,0.000192,2]
[400371508,1767449443568,-243.81,0.000192,2]
[400371509,1767449443578,-279.41786474,0.00019212,2]
[400371510,1767449443594,-303.13640077,0.00019278,2]
[400371511,1767449443616,-303.1212394,0.00019278,2]
[400371512,1767449443633,-300.0,0.00019315,2]
[400371513,1767449443647,-1348.0,0.00019408,2]
[400371514,1767449443657,-450.0,0.00019452,2]
[400371515,1767449443668,-303.13640077,0.00019467,2]
[400371516,1767449443680,-303.1212394,0.00019467,2]
[400371517,1767449443690,-726.6,0.00019472,2]
[400371518,1767449443702,-3842.38180373,0.0001958,2]
[400371519,1767449443933,-484.86821652,0.0001958,2]
[400371520,1767449443946,-2087.45239119,0.0001958,2]
[400371521,1767449443956,-600.0,0.00019589,2]
[400371522,1767449443965,-243.81,0.000196,2]
[400371523,1767449443974,-203.0,0.00019644,3]
[400371524,1767449443983,-109.47067317,0.00019656,2]
[400371543,1767449446532,-193.6657276,0.00019656,2]
[400371544,1767449446541,-303.1212394,0.00019656,2]
[400371545,1767449446552,-5850.275593,0.000197,3]
[400371546,1767449446564,-29864.004407,0.000197,3]
[400371547,1767449446574,-707.74183356,0.00019726,2]
[400371548,1767449446584,-454.70460116,0.00019845,4]
[400371549,1767449446594,-454.6818591,0.00019845,4]
[400371550,1767449446604,-243.81,0.000199,2]
[400371551,1767449446614,-726.6,0.00019977,2]
[400371552,1767449446623,-180.30716337,0.0002,2]
[400371554,1767449446633,-7096.89839494,0.0002,2]
[400371557,1767449446650,-1625.10160506,0.0002,2]
[400371559,1767449446660,-300.0,0.0002,2]
[400371560,1767449446670,-5454.12563268,0.0002,2]
[400371565,1767449446701,-15484.1760107,0.0002,2]
[400371566,1767449446713,-6939.97819475,0.0002,2]
[400371575,1767449448275,-277.312261,0.0002,2]
[400371576,1767449453064,199.58,0.00011608,2]
[400371578,1767449453731,249.47,0.00012091,2]
[400371580,1767449479012,229.73,0.000121,2]
[400371584,1767449526926,150.54,0.00010198,2]
[400371585,1767449527127,301.07,0.00010683,2]
[400371586,1767449527531,451.61,0.00011169,2]
[400371587,1767449528052,602.14,0.00011655,2]
[400371589,1767449551090,233.77,0.000121,2]
[400371590,1767449565063,-752.68,0.0001214,2]
[400371591,1767449565099,-341.37985115,0.00012162,2]
[400371592,1767449565133,-300.0,0.00012184,2]
[400371593,1767449565165,-300.0,0.00012184,2]
[400371594,1767449565437,-2049.78057878,0.00012185,2]
[400371595,1767449570309,-10000.01,0.00012185,2]
[400371596,1767449576522,-10000.01,0.00012185,2]
[400371597,1767449576727,-10000.01,0.00012185,2]
[400371598,1767449576871,-10000.01,0.00012185,2]
[400371599,1767449577022,-2049.83057878,0.00012185,2]
[400371600,1767449577053,-5900.34884244,0.00012185,2]
[400371601,1767449577139,-162.62063769,0.00012185,2]
[400371602,1767449577179,-500.0,0.00012185,2]
[400371603,1767449577217,-500.0,0.00012185,2]
[400371604,1767449577253,-500.0,0.00012185,2]
[400371605,1767449577294,-250.0,0.00012185,2]
[400371606,1767449577330,-500.0,0.00012185,2]
[400371607,1767449577512,-500.0,0.00012185,2]
[400371608,1767449577549,-500.0,0.00012185,2]
[400371609,1767449577583,-500.0,0.00012185,2]
[400371610,1767449577619,-224.08033888,0.00012185,2]
[400371611,1767449577654,-500.0,0.00012185,2]
[400371612,1767449577693,-226.60804686,0.00012185,2]
[400371613,1767449577812,-273.39195314,0.00012185,2]
[400371614,1767449577847,-500.0,0.00012185,2]
[400371615,1767449577879,-202.54340531,0.00012185,2]
[400371616,1767449577913,-257.01134869,0.00012185,2]
[400371617,1767449577951,-500.0,0.00012185,2]
[400371618,1767449577989,-500.0,0.00012185,2]
[400371619,1767449578025,-500.0,0.00012185,2]
[400371620,1767449578091,-250.0,0.00012185,2]
[400371621,1767449578167,-500.0,0.00012185,2]
[400371622,1767449578235,-500.0,0.00012185,2]
[400371623,1767449578303,-500.0,0.00012185,2]
[400371624,1767449578371,-500.0,0.00012185,2]
[400371625,1767449578984,-500.0,0.00012185,2]
[400371626,1767449579017,-500.0,0.00012185,2]
[400371627,1767449579051,-570.91231415,0.00012185,2]
[400371628,1767449579083,-500.0,0.00012185,2]
[400371629,1767449579116,-500.0,0.00012185,2]
[400371630,1767449579150,-500.0,0.00012185,2]
[400371631,1767449579183,-500.0,0.00012185,2]
[400371632,1767449579218,-500.0,0.00012185,2]
[400371633,1767449579250,-500.0,0.00012185,2]
[400371634,1767449579284,-358.1853717,0.00012185,2]
[400371635,1767449579370,-141.8146283,0.00012185,2]
[400371636,1767449579404,-500.0,0.00012185,2]
[400371637,1767449579438,-500.0,0.00012185,2]
[400371638,1767449579474,-500.0,0.00012185,2]
[400371639,1767449579510,-500.0,0.00012185,2]
[400371640,1767449579545,-500.0,0.00012185,2]
[400371641,1767449579581,-500.0,0.00012185,2]
[400371642,1767449579616,-500.0,0.00012185,2]
[400371643,1767449579655,-500.0,0.00012185,2]
[400371644,1767449579695,-500.0,0.00012185,2]
[400371645,1767449579730,-216.3807434,0.00012185,2]
[400371646,1767449580929,-232.94242376,0.00012185,2]
[400371647,1767449580949,-50.67683284,0.00012185,2]
[400371648,1767449580959,-449.32316716,0.00012185,2]
[400371649,1767449585928,-300.0,0.00012184,2]
[400371650,1767449585963,-50.67683284,0.00012185,2]
[400371651,1767449585996,-500.0,0.00012185,2]
[400371652,1767449586029,-500.0,0.00012185,2]
[400371653,1767449586061,-500.0,0.00012185,2]
[400371654,1767449586094,-500.0,0.00012185,2]
[400371655,1767449586129,-500.0,0.00012185,2]
[400371656,1767449586162,-500.0,0.00012185,2]
[400371657,1767449586196,-500.0,0.00012185,2]
[400371658,1767449586229,-500.0,0.00012185,2]
[400371659,1767449586264,-500.0,0.00012185,2]
[400371660,1767449586413,-500.0,0.00012185,2]
[400371661,1767449586449,-500.0,0.00012185,2]
[400371662,1767449586485,-500.0,0.00012185,2]
[400371663,1767449586522,-500.0,0.00012185,2]
[400371664,1767449586557,-500.0,0.00012185,2]
[400371665,1767449586592,-500.0,0.00012185,2]
[400371666,1767449586628,-500.0,0.00012185,2]
[400371667,1767449586796,-500.0,0.00012185,2]
[400371668,1767449586833,-500.0,0.00012185,2]
[400371669,1767449586870,-500.0,0.00012185,2]
[400371670,1767449586993,-500.0,0.00012185,2]
[400371671,1767449587028,-500.0,0.00012185,2]
[400371672,1767449587064,-500.0,0.00012185,2]
[400371673,1767449587114,-500.0,0.00012185,2]
[400371674,1767449587148,-500.0,0.00012185,2]
[400371675,1767449587184,-500.0,0.00012185,2]
[400371676,1767449587219,-500.0,0.00012185,2]
[400371677,1767449587252,-500.0,0.00012185,2]
[400371678,1767449587284,-500.0,0.00012185,2]
[400371679,1767449587318,-500.0,0.00012185,2]
[400371680,1767449587905,-298.66633432,0.00012185,2]
[400371681,1767449587922,-0.01,0.00012185,2]
[400371682,1767449592169,-201.32366568,0.00012185,2]
[400371683,1767449592205,-500.0,0.00012185,2]
[400371684,1767449592239,-500.0,0.00012185,2]
[400371685,1767449592273,-500.0,0.00012185,2]
[400371686,1767449592306,-500.0,0.00012185,2]
[400371687,1767449592340,-399.6897918,0.00012185,2]
[400371688,1767449592373,-500.0,0.00012185,2]
[400371689,1767449592407,-500.0,0.00012185,2]
[400371690,1767449592439,-500.0,0.00012185,2]
[400371691,1767449592473,-500.0,0.00012185,2]
[400371692,1767449592506,-297.98308504,0.00012185,2]
[400371693,1767449592707,-202.01691496,0.00012185,2]
[400371694,1767449601562,-1200.0,0.00012184,2]
[400371695,1767449601596,-500.0,0.00012185,2]
[400371696,1767449601630,-500.0,0.00012185,2]
[400371697,1767449601665,-500.0,0.00012185,2]
[400371698,1767449601703,-500.0,0.00012185,2]
[400371699,1767449601738,-500.0,0.00012185,2]
[400371700,1767449601773,-500.0,0.00012185,2]
[400371701,1767449601808,-258.37245907,0.00012185,2]
[400371702,1767449601842,-500.0,0.00012185,2]
[400371703,1767449602034,-83.26508186,0.00012185,2]
[400371704,1767449604954,-416.73491814,0.00012185,2]
[400371705,1767449604991,-500.0,0.00012185,2]
[400371706,1767449605026,-500.0,0.00012185,2]
[400371707,1767449605060,-500.0,0.00012185,2]
[400371708,1767449605097,-500.0,0.00012185,2]
[400371709,1767449605132,-500.0,0.00012185,2]
[400371710,1767449605167,-500.0,0.00012185,2]
[400371711,1767449605202,-500.0,0.00012185,2]
[400371712,1767449605237,-500.0,0.00012185,2]
[400371713,1767449605272,-250.0,0.00012185,2]
[400371714,1767449605309,-166.54016372,0.00012185,2]
[400371715,1767449605567,-333.45983628,0.00012185,2]
[400371717,1767449611043,-252.43,0.00010036,2]
[400371718,1767449611071,-378.64,0.00010493,2]
[400371719,1767449611099,-504.85,0.00010949,2]
[400371720,1767449611125,-631.06,0.00011405,2]
[400371721,1767449611152,-757.28,0.00011861,2]
[400371722,1767449611177,-500.0,0.00012185,2]
[400371723,1767449611205,-500.0,0.00012185,2]
[400371724,1767449611230,-609.90661202,0.00012185,2]
[400371725,1767449642363,1731.67677596,0.00012186,2]
[400371726,1767449642390,3268.32322404,0.00012186,2]
[400371727,1767449643059,300.0,0.00012185,2]
[400371728,1767449659973,3823.37530329,0.00012186,2]
[400371729,1767449668263,2608.31147267,0.00012186,2]
[400371730,1767449668290,2391.68852733,0.00012186,2]
[400371731,1767449668695,534.3084217,0.00012185,2]
[400371732,1767449668739,500.0,0.00012185,2]
[400371733,1767449668771,500.0,0.00012185,2]
[400371734,1767449668804,500.0,0.00012185,2]
[400371735,1767449668833,406.74683954,0.00012185,2]
[400371736,1767449669017,500.0,0.00012185,2]
[400371737,1767449669051,500.0,0.00012185,2]
[400371738,1767449669085,262.40239558,0.00012185,2]
[400371739,1767449669124,500.0,0.00012185,2]
[400371740,1767449689883,188.17,0.00010472,2]
[400371741,1767449690383,282.26,0.00010948,2]
[400371742,1767449690897,376.34,0.00011424,2]
[400371743,1767449691388,470.43,0.000119,2]
[400371744,1767449692761,2087.66381585,0.00012186,2]
[400371745,1767449692786,2912.33618415,0.00012186,2]
[400371746,1767449701428,300.0,0.00012185,2]
[400371747,1767449702621,300.0,0.00012185,2]
[400371748,1767449702656,300.0,0.00012185,2]
[400371749,1767449703019,300.0,0.00012185,2]
[400371750,1767449710091,500.0,0.00012185,2]
[400371751,1767449710300,296.97483122,0.00012185,2]
[400371752,1767449711318,500.0,0.00012185,2]
[400371753,1767449714200,500.0,0.00012185,2]
[400371754,1767449714249,500.0,0.00012185,2]
[400371755,1767449714313,500.0,0.00012185,2]
[400371756,1767449714365,300.00000001,0.00012185,2]
[400371757,1767449717327,2790.69898462,0.00012186,2]
[400371758,1767449717553,1243.46824925,0.00012186,2]
[400371759,1767449747880,465.6915783,0.00012185,2]
[400371760,1767449747919,180.0,0.00012185,2]
[400371761,1767449762343,300.0,0.00012185,2]
[400371762,1767449769673,-6079.17339649,0.00012186,2]
[400371763,1767449772654,-154.64,0.00010488,2]
[400371764,1767449772690,-231.96,0.00010965,2]
[400371765,1767449772727,-309.29,0.00011441,2]
[400371766,1767449772767,-386.61,0.00011918,2]
[400371767,1767449772882,-7835.01,0.00012186,2]
[400371768,1767449772911,-10000.01,0.00012186,2]
[400371769,1767449779654,999.0,0.0001175,2]
[400371770,1767449792830,229.09,0.000121,2]
[400371772,1767449850056,205.65,0.00010749,2]
[400371773,1767449850549,308.48,0.00011238,2]
[400371774,1767449850961,411.3,0.00011726,2]
[400371775,1767449860016,495.6543747,0.00011362,2]
[400371776,1767449909660,293.53,0.000121,2]
[400371777,1767449929749,7057.3056253,0.00012106,2]
[400371778,1767449929777,2942.6943747,0.00012106,2]
[400371779,1767449934603,186.44,0.0001012,2]
[400371780,1767449935107,279.65,0.0001058,2]
[400371781,1767449935663,372.87,0.0001104,2]
[400371782,1767449936044,5000.0,0.00012106,2]
[400371783,1767449936158,466.09,0.000115,2]
[400371784,1767449936658,559.31,0.0001196,2]
[400371785,1767449945822,192.9556253,0.00012106,2]
[400371786,1767449945848,325.8443747,0.00012106,2]
[400371787,1767449953377,3290.4063742,0.00012106,2]
[400371788,1767449961485,5000.0,0.00012106,2]
[400371789,1767449978340,644.94098636,0.00012106,2]
[400371790,1767449986839,738.81826474,0.00012106,2]
[400371791,1767449986869,4261.18173526,0.00012106,2]
[400371792,1767450011931,5000.0,0.00012106,2]
[400371793,1767450014528,190.07,0.00010381,2]
[400371794,1767450015009,285.11,0.00010853,2]
[400371795,1767450015437,263.64826474,0.00011325,2]
[400371796,1767450015473,116.49173526,0.00011325,2]
[400371797,1767450015944,475.18,0.00011797,2]
[400371798,1767450031313,283.4,0.000121,2]
[400371799,1767450036833,5000.0,0.00012106,2]
[400371800,1767450041526,1200.0,0.0001,10]
[400371801,1767450061669,2924.93826474,0.00012106,2]
[400371802,1767450061699,2075.06173526,0.00012106,2]
[400371803,1767450086704,4285.45098197,0.00012106,2]
[400371804,1767450095023,184.74,0.00010381,2]
[400371805,1767450095402,277.11,0.00010853,2]
[400371806,1767450095902,369.48,0.00011325,2]
[400371807,1767450096654,461.85,0.00011797,2]
[400371808,1767450103572,186.554,0.00011942,2]
[400371809,1767450151094,344.23,0.000121,2]
[400371810,1767450159740,507.443316,0.00011296,2]
[400371811,1767450175668,151.82,0.00010685,2]
[400371812,1767450176084,227.73,0.0001117,2]
[400371813,1767450176584,303.64,0.00011656,2]
[400371814,1767450255226,201.65,0.0001115,2]
[400371815,1767450255930,268.86,0.00011635,2]
[400371816,1767450269876,287.76,0.000121,2]
[400371822,1767450328410,1812.0279298,0.00011282,2]
[400371824,1767450333350,183.68,0.00011156,2]
[400371825,1767450333901,244.91,0.00011641,2]
[400371832,1767450392235,343.1,0.000121,2]
[400371850,1767450412292,173.34,0.00011161,2]
[400371851,1767450412785,231.11,0.00011646,2]
[400371886,1767450474960,160.0,0.000287,120]
[400371887,1767450490026,157.89,0.00011223,2]
[400371888,1767450490424,210.52,0.00011711,2]
[400371891,1767450513332,288.86,0.000121,2]
[400371897,1767450519497,5596.3020702,0.0001,2]
[400371898,1767450519525,10000.01,0.0001,2]
[400371899,1767450519552,2464.71154875,0.0001,2]
[400371900,1767450523403,7535.29845125,0.00012086,2]
[400371901,1767450523438,10000.01,0.00012086,2]
[400371902,1767450523472,10000.01,0.00012086,2]
[400371903,1767450523505,10000.01,0.00012086,2]
[400371904,1767450523539,10000.01,0.00012086,2]
[400371905,1767450523574,10000.01,0.00012086,2]
[400371906,1767450523607,10000.01,0.00012086,2]
[400371907,1767450523639,10000.01,0.00012086,2]
[400371909,1767450544390,-5000.0,0.00011965,2]
[400371910,1767450544570,-342.06341009,0.00012025,2]
[400371911,1767450544606,-300.0,0.00012085,2]
[400371915,1767450551905,5000.0,0.00012086,2]
[400371916,1767450553396,-246.38258082,0.00012086,2]
[400371917,1767450556749,-412.576898,0.00012086,2]
[400371918,1767450559891,-300.0,0.00012086,2]
[400371919,1767450562457,-365.47384841,0.00012086,2]
[400371921,1767450566098,211.78,0.00010691,2]
[400371922,1767450566513,317.67,0.00011177,2]
[400371923,1767450566934,-175.20227849,0.00012086,2]
[400371924,1767450567131,423.55,0.00011663,2]
[400371925,1767450569393,-151.59812463,0.00012086,2]
[400371926,1767450576703,2762.88317982,0.00012086,2]
[400371927,1767450576732,2237.11682018,0.00012086,2]
[400371929,1767450597911,-170.14,0.00012086,2]
[400371931,1767450601287,5000.0,0.00012086,2]
[400371932,1767450601326,300.0,0.00012085,2]
[400371933,1767450602070,300.0,0.00012085,2]
[400371934,1767450602298,-190.60226725,0.00012086,2]
[400371935,1767450602519,300.0,0.00012085,2]
[400371936,1767450602638,300.0,0.00012085,2]
[400371937,1767450602895,1200.0,0.00012085,2]
[400371939,1767450605039,-311.46308135,0.00012086,2]
[400371940,1767450606442,-366.10603496,0.00012086,2]
[400371941,1767450608369,-268.1597608,0.00012086,2]
[400371942,1767450609848,-287.30063231,0.00012086,2]
[400371943,1767450613450,-353.27021086,0.00012086,2]
[400371944,1767450615946,-300.0,0.00012086,2]
[400371946,1767450618138,-238.88394758,0.00012086,2]
[400371948,1767450621955,-197.23411541,0.00012086,2]
[400371949,1767450624103,-315.35540128,0.00012086,2]
[400371950,1767450625600,-175.26288979,0.00012086,2]
[400371951,1767450626007,362.89317982,0.00012086,2]
[400371952,1767450626038,4637.10682018,0.00012086,2]
[400371974,1767450631557,-119848.18894016,0.00012086,2]
[400371975,1767450631623,-806.91016772,0.00012086,2]
[400372004,1767450637704,-8688.39745366,0.00012086,2]
[400372005,1767450637716,-1374.81438009,0.00012086,2]
[400372006,1767450637727,-1353.1442974,0.00012086,2]
[400372007,1767450637739,-3522.03631563,0.00012086,2]
[400372008,1767450637774,-537720.79999739,0.00012086,2]
[400372009,1767450637784,-590.0,0.00012086,2]
[400372010,1767450637793,-416.46,0.000121,2]
[400372011,1767450637803,-529.44,0.00012149,2]
[400372012,1767450637813,-500.0,0.00012185,2]
[400372013,1767450637823,-500.0,0.00012185,2]
[400372014,1767450637832,-500.0,0.00012185,2]
[400372015,1767450637842,-500.0,0.00012185,2]
[400372016,1767450637852,-382.48238567,0.00012185,2]
[400372017,1767450637862,-1200.0,0.00012185,2]
[400372018,1767450637871,-1401.61225899,0.00012229,2]
[400372019,1767450637882,-517.74,0.00012329,2]
[400372020,1767450637893,-416.46,0.000124,2]
[400372021,1767450637903,-300.0,0.00012427,2]
[400372022,1767450637913,-300.0,0.00012427,2]
[400372023,1767450637925,-300.0,0.00012427,2]
[400372024,1767450637935,-300.0,0.00012427,2]
[400372025,1767450637950,-300.0,0.00012427,2]
[400372026,1767450637960,-300.0,0.00012427,2]
[400372027,1767450637970,-300.0,0.00012427,2]
[400372028,1767450637981,-300.0,0.00012427,2]
[400372029,1767450637992,-300.0,0.00012427,2]
[400372030,1767450638002,-300.0,0.00012427,2]
[400372031,1767450638012,-300.0,0.00012427,2]
[400372032,1767450638023,-300.0,0.00012427,2]
[400372033,1767450638033,-300.0,0.00012427,2]
[400372034,1767450638051,-300.0,0.00012427,2]
[400372035,1767450638073,-300.0,0.00012427,2]
[400372036,1767450638092,-600.0,0.00012427,2]
[400372037,1767450638114,-205.41447394,0.00012427,2]
[400372038,1767450638136,-50000.0,0.00012427,2]
[400372039,1767450638158,-635.33,0.00012635,2]
[400372040,1767450638183,-416.46,0.000128,2]
[400372041,1767450638201,-311.12803472,0.00012864,2]
[400372042,1767450638221,-158.88847007,0.00012999,2]
[400372043,1767450638239,-19727.01241414,0.00013,7]
[400372044,1767450638254,-416.46,0.000131,2]
[400372045,1767450638272,-741.22,0.00013121,2]
[400372046,1767450638292,-160.94726979,0.00013136,2]
[400372047,1767450638312,-304.0,0.00013265,2]
[400372048,1767450638330,-420.0,0.00013265,2]
[400372049,1767450638344,-500.0,0.00013266,2]
[400372050,1767450638365,-500.0,0.00013266,2]
[400372051,1767450638381,-179.25919058,0.00013273,2]
[400372052,1767450638396,-500.0,0.00013273,2]
[400372053,1767450638414,-500.191811,0.00013273,2]
[400372054,1767450638428,-161.79331584,0.00013273,2]
[400372055,1767450638446,-489.45983528,0.00013273,2]
[400372056,1767450638462,-500.0,0.00013273,2]
[400372057,1767450638478,-441.28107065,0.00013273,2]
[400372058,1767450638494,-530.84744,0.00013273,2]
[400372059,1767450638510,-500.0,0.00013273,2]
[400372060,1767450638526,-500.0,0.00013273,2]
[400372061,1767450638541,-500.0,0.00013273,2]
[400372062,1767450638557,-500.0,0.00013273,2]
[400372063,1767450638573,-500.0,0.00013273,2]
[400372064,1767450638590,-371.29616414,0.00013273,2]
[400372065,1767450638606,-500.0,0.00013273,2]
[400372066,1767450638621,-500.55502892,0.00013273,2]
[400372067,1767450638637,-500.74961065,0.00013273,2]
[400372068,1767450638653,-500.0,0.00013273,2]
[400372069,1767450638669,-500.0,0.00013273,2]
[400372070,1767450638685,-500.0,0.00013273,2]
[400372071,1767450638701,-500.0,0.00013273,2]
[400372072,1767450638717,-500.0,0.00013273,2]
[400372073,1767450638733,-500.40812858,0.00013273,2]
[400372074,1767450638749,-500.48237545,0.00013273,2]
[400372075,1767450638765,-500.35714375,0.00013273,2]
[400372076,1767450638780,-500.0,0.00013273,2]
[400372077,1767450638795,-500.91796421,0.00013273,2]
[400372078,1767450638811,-500.70079178,0.00013273,2]
[400372079,1767450638827,-502.52676973,0.00013273,2]
[400372080,1767450638842,-155.65216,0.00013273,2]
[400372081,1767450638858,-500.0,0.00013273,2]
[400372082,1767450638873,-500.0,0.00013273,2]
[400372083,1767450638890,-500.0,0.00013273,2]
[400372084,1767450638907,-500.0,0.00013273,2]
[400372085,1767450638922,-500.0,0.00013273,2]
[400372086,1767450638939,-1680.0,0.00013374,2]
[400372087,1767450638956,-416.46,0.000134,2]
[400372088,1767450638973,-299.999999,0.00013403,2]
[400372089,1767450638989,-500.0,0.00013403,2]
[400372090,1767450638999,-501.75567666,0.00013403,2]
[400372091,1767450639010,-500.0,0.0001354,2]
[400372092,1767450639021,-6014.64117995,0.0001354,2]
[400372093,1767450639032,-500.0,0.00013547,2]
[400372097,1767450639220,-200.0,0.00013547,2]
[400372098,1767450639245,-225.75054393,0.00013547,2]
[400372099,1767450639255,-847.11,0.00013607,2]
[400372100,1767450639266,-720.0,0.0001367,2]
[400372101,1767450639276,-300.0,0.00013673,2]
[400372102,1767450639286,-500.0,0.00013677,2]
[400372103,1767450639295,-250.0,0.00013684,2]
[400372104,1767450639305,-191.60962152,0.00013698,2]
[400372105,1767450639314,-500.0,0.00013698,2]
[400372106,1767450639323,-500.0,0.00013698,2]
[400372107,1767450639332,-450.1410394,0.00013698,2]
[400372108,1767450639342,-529.5136224,0.00013698,2]
[400372109,1767450639352,-540.00737412,0.00013698,2]
[400372110,1767450639361,-500.0,0.00013698,2]
[400372111,1767450639371,-500.0,0.00013698,2]
[400372112,1767450639380,-500.0,0.00013698,2]
[400372113,1767450639389,-500.0,0.00013698,2]
[400372114,1767450639399,-500.0,0.00013698,2]
[400372115,1767450639408,-500.0,0.00013698,2]
[400372116,1767450639419,-500.0,0.00013698,2]
[400372117,1767450639428,-500.0,0.00013698,2]
[400372118,1767450639439,-500.0,0.00013698,2]
[400372119,1767450639448,-500.0,0.00013698,2]
[400372120,1767450639458,-500.0,0.00013698,2]
[400372121,1767450639467,-500.0,0.00013698,2]
[400372122,1767450639476,-500.0,0.00013698,2]
[400372123,1767450639487,-500.0,0.00013698,2]
[400372124,1767450639497,-500.0,0.00013698,2]
[400372125,1767450639506,-500.0,0.00013698,2]
[400372126,1767450639515,-500.0,0.00013698,2]
[400372127,1767450639525,-500.0,0.00013698,2]
[400372128,1767450639534,-500.0,0.00013698,2]
[400372129,1767450639544,-500.0,0.00013698,2]
[400372130,1767450639553,-500.0,0.00013698,2]
[400372131,1767450639563,-500.0,0.00013698,2]
[400372132,1767450639572,-500.0,0.00013698,2]
[400372133,1767450639582,-500.0,0.00013698,2]
[400372134,1767450639591,-500.0,0.00013698,2]
[400372135,1767450639601,-500.0,0.00013698,2]
[400372136,1767450639611,-500.0,0.00013698,2]
[400372137,1767450639620,-500.0,0.00013698,2]
[400372138,1767450639629,-500.0,0.00013698,2]
[400372140,1767450639639,-500.0,0.00013698,2]
[400372141,1767450639648,-500.0,0.00013698,2]
[400372143,1767450639658,-500.0,0.00013698,2]
[400372144,1767450639668,-511.6918153,0.00013698,2]
[400372146,1767450639677,-1730.16,0.00013698,2]
[400372147,1767450639687,-1730.16,0.00013698,2]
[400372148,1767450639697,-1730.16,0.00013698,2]
[400372149,1767450639707,-1730.16,0.00013698,2]
[400372151,1767450639716,-1730.16,0.00013698,2]
[400372153,1767450639725,-1730.16,0.00013698,2]
[400372154,1767450639735,-1730.16,0.00013698,2]
[400372155,1767450639744,-1730.16,0.00013698,2]
[400372156,1767450639753,-1730.16,0.00013698,2]